bitfinex/quotes_BTCUSD_20250727
["timestamp","ask_amount","ask_price","bid_price","bid_amount"]
[1753640392766,0.53783837,119330.0,119320.0,0.45177637]
[1753640393196,0.5294586,119330.0,119320.0,0.45177637]
[1753640393441,0.53783844,119330.0,119320.0,0.45177637]
[1753640393654,0.53883844,119330.0,119320.0,0.45177637]
[1753640394096,0.5304586,119330.0,119320.0,0.45177637]
[1753640394723,0.53883844,119330.0,119320.0,0.45177637]
[1753640394904,0.53883844,119330.0,119320.0,0.47661753]
[1753640395614,0.53883844,119330.0,119320.0,0.48924417]
[1753640396267,0.54088844,119330.0,119320.0,0.48924417]
[1753640396491,0.70849137,119330.0,119320.0,0.32538283]
[1753640396709,0.79747142,119330.0,119320.0,0.36872868]
[1753640396928,0.78909172,119330.0,119320.0,0.32712637]
[1753640397150,0.78909172,119330.0,119320.0,0.33550698]
[1753640398047,0.78909172,119330.0,119320.0,0.34388752]
[1753640398247,0.62148928,119330.0,119320.0,0.35226799]
[1753640398457,0.62148886,119330.0,119320.0,0.36052832]
[1753640398877,0.61310888,119330.0,119320.0,0.36052832]
[1753640399104,0.62148886,119330.0,119320.0,0.36052832]
[1753640399323,0.79747135,119330.0,119320.0,0.35214799]
[1753640399531,0.79747135,119330.0,119320.0,0.36052839]
[1753640399747,0.62986891,119330.0,119320.0,0.36052797]
[1753640400163,0.80585147,119330.0,119320.0,0.32700644]
[1753640400383,0.789092,119330.0,119320.0,0.15101214]
[1753640400606,0.78071202,119330.0,119320.0,0.15101214]
[1753640400860,1.10258143,119330.0,119320.0,0.15085214]
[1753640401076,1.10258143,119330.0,119320.0,0.0001455]
[1753640401937,1.35158143,119330.0,119320.0,0.0001455]
[1753640402159,1.35158143,119330.0,119320.0,0.0021455]
[1753640402602,1.35158143,119330.0,119320.0,0.0051455]
[1753640402830,1.48986143,119330.0,119320.0,0.0051455]
[1753640403303,1.48986143,119330.0,119320.0,0.0081455]
[1753640404791,1.48986143,119330.0,119320.0,0.0081966]
[1753640405218,1.50231969,119330.0,119320.0,0.0081966]
[1753640407189,0.85858087,119330.0,119320.0,0.0081966]
[1753640407405,1.50231969,119330.0,119320.0,0.0081966]
[1753640409345,1.58679699,119330.0,119320.0,0.0081966]
[1753640409999,0.63279649,119310.0,119300.0,0.1378]
[1753640410223,0.33102667,119300.0,119290.0,0.15077825]
[1753640410454,0.91419948,119300.0,119290.0,0.15276825]
[1753640410673,0.99035948,119300.0,119290.0,0.15276825]
[1753640410977,0.99035948,119300.0,119290.0,0.34557505]
[1753640410978,0.84454905,119300.0,119290.0,0.34557505]
[1753640411185,1.00712364,119300.0,119290.0,0.34557505]
[1753640411389,0.50922721,119300.0,119290.0,0.35395749]
[1753640411603,0.83947877,119300.0,119290.0,0.35395749]
[1753640411847,0.8394787,119300.0,119290.0,0.35395749]
[1753640412038,0.84786085,119300.0,119290.0,0.35395749]
[1753640412276,1.02388766,119300.0,119290.0,0.35395749]
[1753640412484,1.00712385,119300.0,119290.0,0.33719254]
[1753640412689,0.99874177,119300.0,119290.0,0.33719254]
[1753640412908,0.99035962,119300.0,119290.0,0.32880982]
[1753640413126,0.9849974,119300.0,119290.0,0.32880982]
[1753640413535,1.0198474,119300.0,119290.0,0.32880982]
[1753640413753,0.86896676,119300.0,119290.0,0.34557533]
[1753640413957,0.83616676,119300.0,119290.0,0.35395777]
[1753640414587,0.84454891,119300.0,119290.0,0.35395777]
[1753640414786,1.0121935,119300.0,119290.0,0.34557533]
[1753640414995,1.0121935,119300.0,119290.0,0.20781533]
[1753640415197,0.99742955,119300.0,119290.0,0.20781547]
[1753640415415,0.66717799,119300.0,119290.0,0.18655999]
[1753640415618,0.99742948,119300.0,119290.0,0.21170787]
[1753640415821,0.99742948,119300.0,119290.0,0.20332536]
[1753640416070,0.73412608,119300.0,119290.0,0.20332536]
[1753640416273,0.73412608,119300.0,119290.0,0.19494278]
[1753640416687,0.76602608,119300.0,119290.0,0.19494278]
[1753640417157,0.757644,119300.0,119290.0,0.17817713]
[1753640417594,0.757644,119300.0,119290.0,0.18655999]
[1753640418008,0.757644,119300.0,119290.0,0.18456999]
[1753640418229,0.81341464,119300.0,119290.0,0.18456999]
[1753640418443,0.757644,119300.0,119290.0,0.18456999]
[1753640418879,0.757644,119300.0,119290.0,0.00014556]
[1753640420406,0.757644,119300.0,119290.0,0.00214556]
[1753640420617,0.757644,119300.0,119290.0,0.00614556]
[1753640420845,0.81341464,119300.0,119290.0,0.00614556]
[1753640421065,0.895364,119300.0,119290.0,0.00614556]
[1753640421484,0.57349459,119300.0,119290.0,0.00614556]
[1753640421701,0.895364,119300.0,119290.0,0.00614556]
[1753640422785,0.57349459,119300.0,119290.0,0.00614556]
[1753640423004,0.895364,119300.0,119290.0,0.00614556]
[1753640425242,0.57349459,119300.0,119290.0,0.00614556]
[1753640425494,0.895364,119300.0,119290.0,0.00614556]
[1753640426603,0.90780328,119300.0,119290.0,0.00614556]
[1753640426865,1.54881113,119300.0,119290.0,0.00614556]
[1753640427132,1.54881113,119300.0,119290.0,0.00414556]
[1753640427397,1.18615286,119300.0,119290.0,0.00514556]
[1753640428634,1.18615286,119300.0,119290.0,0.00114556]
[1753640428843,0.82349459,119300.0,119290.0,0.00114556]
[1753640429065,1.18615286,119300.0,119290.0,0.00114556]
[1753640430201,1.18615286,119300.0,119290.0,0.00414556]
[1753640430423,0.82349459,119300.0,119290.0,0.00414556]
[1753640430638,1.18615286,119300.0,119290.0,0.00414556]
[1753640430852,1.63525286,119300.0,119290.0,0.00414556]
[1753640431657,1.63525286,119300.0,119290.0,0.1718042]
[1753640432141,1.63525286,119300.0,119290.0,0.00414556]
[1753640432374,1.64323508,119300.0,119290.0,0.18018706]
[1753640432642,1.64323508,119300.0,119290.0,0.00414556]
[1753640432848,1.64323508,119300.0,119290.0,0.18018713]
[1753640433783,1.63485286,119300.0,119290.0,0.00414556]
[1753640434744,1.63485286,119300.0,119290.0,0.1718042]
[1753640436211,1.63485286,119300.0,119290.0,0.00414556]
[1753640438606,1.49753286,119300.0,119290.0,0.1718042]
[1753640438834,1.63461286,119300.0,119290.0,0.1718042]
[1753640439355,1.63461286,119300.0,119290.0,0.00414556]
[1753640440062,1.27195459,119300.0,119290.0,0.00414556]
[1753640440298,1.63461286,119300.0,119290.0,0.00414556]
[1753640441823,1.99727113,119300.0,119290.0,0.00414556]
[1753640442055,1.63461286,119300.0,119290.0,0.00414556]
[1753640443021,1.99727113,119300.0,119290.0,0.00414556]
[1753640443519,2.07727113,119300.0,119290.0,0.00414556]
[1753640444765,1.71264843,119300.0,119290.0,0.00414556]
[1753640446127,1.71264843,119300.0,119290.0,0.00114556]
[1753640446555,0.24283891,119270.0,119260.0,0.37372769]
[1753640446768,0.60549718,119270.0,119260.0,0.36740301]
[1753640446986,0.75479718,119270.0,119260.0,0.22241826]
[1753640447212,0.76011718,119270.0,119260.0,0.16972294]
[1753640447433,0.78303334,119270.0,119260.0,0.18649295]
[1753640447662,0.75173334,119270.0,119260.0,0.19487785]
[1753640448123,0.75173334,119270.0,119260.0,0.19587785]
[1753640448554,0.75173334,119270.0,119260.0,0.21264729]
[1753640448761,0.74641334,119270.0,119260.0,0.21264736]
[1753640448969,0.57872658,119270.0,119260.0,0.21264693]
[1753640449178,0.57872658,119270.0,119260.0,0.2126465]
[1753640449414,0.58711091,119270.0,119260.0,0.19587735]
[1753640449596,0.21606831,119270.0,119260.0,0.20426189]
[1753640449801,0.57034211,119270.0,119260.0,0.20426189]
[1753640450056,0.57034211,119270.0,119260.0,0.23596189]
[1753640450267,0.1993,119270.0,119260.0,0.23596189]
[1753640450487,0.1993,119270.0,119260.0,0.24768469]
[1753640450488,0.57872581,119270.0,119260.0,0.24768469]
[1753640450735,0.50442581,119270.0,119260.0,0.24768469]
[1753640450925,0.49604197,119270.0,119260.0,0.24768469]
[1753640451141,0.14176754,119270.0,119260.0,0.24768469]
[1753640451355,0.51280979,119270.0,119260.0,0.24768469]
[1753640451568,0.51281,119270.0,119260.0,0.24768469]
[1753640452024,0.58710993,119270.0,119260.0,0.24768469]
[1753640452256,0.57872588,119270.0,119260.0,0.24768469]
[1753640452468,0.57034197,119270.0,119260.0,0.23596189]
[1753640452678,0.57872581,119270.0,119260.0,0.23596189]
[1753640452886,0.58710972,119270.0,119260.0,0.23596189]
[1753640453095,0.59549377,119270.0,119260.0,0.23596189]
[1753640453305,0.22445145,119270.0,119260.0,0.23596189]
[1753640453522,0.21606754,119270.0,119260.0,0.23596189]
[1753640453746,0.57872581,119270.0,119260.0,0.23596189]
[1753640454008,0.58710979,119270.0,119260.0,0.23596189]
[1753640454450,0.57872581,119270.0,119260.0,0.23596189]
[1753640455057,0.58710979,119270.0,119260.0,0.23596189]
[1753640455311,0.57872581,119270.0,119260.0,0.23596189]
[1753640455794,0.58710972,119270.0,119260.0,0.23596189]
[1753640456031,0.2328362,119270.0,119260.0,0.23596196]
[1753640456259,0.28022258,119270.0,119260.0,0.2443465]
[1753640456478,0.64792078,119270.0,119260.0,0.2126465]
[1753640456699,0.6646893,119270.0,119260.0,0.19587735]
[1753640456922,0.82399229,119270.0,119260.0,0.18749267]
[1753640457165,0.85529229,119270.0,119260.0,0.19587742]
[1753640457385,0.84690831,119270.0,119260.0,0.18749267]
[1753640457602,0.84690831,119270.0,119260.0,0.17076082]
[1753640457823,0.84690831,119270.0,119260.0,0.17708586]
[1753640458042,0.83852419,119270.0,119260.0,0.18547076]
[1753640458262,0.46748173,119270.0,119260.0,0.18547083]
[1753640458521,0.83014,119270.0,119260.0,0.32207083]
[1753640458733,0.83014,119270.0,119260.0,0.33045566]
[1753640458951,0.83014,119270.0,119260.0,0.32207083]
[1753640459384,0.82175567,119270.0,119260.0,0.31368586]
[1753640459851,0.82175567,119270.0,119260.0,0.32207083]
[1753640460063,0.85415567,119270.0,119260.0,0.32207083]
[1753640460496,0.4914974,119270.0,119260.0,0.33045566]
[1753640460730,0.82175567,119270.0,119260.0,0.33884034]
[1753640461318,0.83013986,119270.0,119260.0,0.33884034]
[1753640461557,0.27687881,119270.0,119260.0,0.34722488]
[1753640461769,0.64792134,119270.0,119260.0,0.34927488]
[1753640461986,0.82399243,119270.0,119260.0,0.34089034]
[1753640462360,0.46133416,119270.0,119260.0,0.34089034]
[1753640462594,0.82399243,119270.0,119260.0,0.34927495]
[1753640462829,0.45294983,119270.0,119260.0,0.34088991]
[1753640463070,0.8156081,119270.0,119260.0,0.32412062]
[1753640463309,0.79883993,119270.0,119260.0,0.1376]
[1753640463587,0.77376929,119270.0,119260.0,0.30530082]
[1753640463810,0.58376658,119270.0,119260.0,0.33883991]
[1753640464373,0.58376658,119270.0,119260.0,0.33250537]
[1753640464623,0.82163767,119270.0,119260.0,0.32207062]
[1753640464852,0.81325362,119270.0,119260.0,0.1376]
[1753640465075,0.94949362,119270.0,119260.0,0.1376]
[1753640465998,0.58683535,119270.0,119260.0,0.1376]
[1753640466181,0.58683535,119270.0,119260.0,0.32207083]
[1753640466182,0.94949362,119270.0,119260.0,0.32207083]
[1753640467062,0.94110936,119270.0,119260.0,0.14598504]
[1753640467306,0.93272503,119270.0,119260.0,0.14598504]
[1753640467964,0.93272503,119270.0,119260.0,0.1376]
[1753640468632,0.57006676,119270.0,119260.0,0.1376]
[1753640468849,0.93272503,119270.0,119260.0,0.001]
[1753640469505,0.57006676,119270.0,119260.0,0.001]
[1753640469720,0.93272503,119270.0,119260.0,0.001]
[1753640470126,0.93272503,119270.0,119260.0,0.003]
[1753640471104,0.93272503,119270.0,119260.0,0.002]
[1753640471496,0.93272503,119270.0,119260.0,0.005]
[1753640473723,1.18272503,119270.0,119260.0,0.005]
[1753640474174,1.18272503,119270.0,119260.0,0.18108586]
[1753640474399,1.18272503,119270.0,119260.0,0.005]
[1753640474617,1.18272503,119270.0,119260.0,0.345]
[1753640475970,1.18272503,119270.0,119260.0,0.52108579]
[1753640475971,0.82006676,119270.0,119260.0,0.52108579]
[1753640476112,1.18272503,119270.0,119260.0,0.52108579]
[1753640476324,1.18272503,119270.0,119260.0,0.51270082]
[1753640477042,1.18272503,119270.0,119260.0,0.52108586]
[1753640477693,1.18272503,119270.0,119260.0,0.345]
[1753640478527,0.82006676,119270.0,119260.0,0.345]
[1753640478733,0.82006676,119270.0,119260.0,0.51270082]
[1753640478945,0.52452391,119270.0,119260.0,0.52947083]
[1753640479159,0.52452391,119270.0,119260.0,1.03449839]
[1753640479160,0.25,119270.0,119260.0,1.03449839]
[1753640479369,0.25,119270.0,119260.0,1.11897569]
[1753640479577,0.325,119270.0,119260.0,1.11897569]
[1753640479791,0.075,119270.0,119260.0,1.11897569]
[1753640480224,0.52119125,119280.0,119270.0,0.25553891]
[1753640480430,0.51280783,119280.0,119270.0,0.45166891]
[1753640480637,0.51280783,119280.0,119270.0,0.45371891]
[1753640480846,0.15853305,119280.0,119270.0,0.45371891]
[1753640481301,0.48923262,119280.0,119270.0,0.45371891]
[1753640481507,0.16691661,119280.0,119270.0,0.45571891]
[1753640481726,0.15853305,119280.0,119270.0,0.45571891]
[1753640481958,0.15014956,119280.0,119270.0,0.45571891]
[1753640482169,0.47246557,119280.0,119270.0,0.45571891]
[1753640482371,0.48084899,119280.0,119270.0,0.45273891]
[1753640482842,0.56009297,119280.0,119270.0,0.36276891]
[1753640483225,0.71099918,119280.0,119270.0,0.31540102]
[1753640483440,0.70765576,119280.0,119270.0,0.32378521]
[1753640483884,0.70765576,119280.0,119270.0,0.33216933]
[1753640484099,0.70765576,119280.0,119270.0,0.34893736]
[1753640484314,0.21766705,119280.0,119270.0,0.34893701]
[1753640484528,1.09467177,119280.0,119270.0,0.002]
[1753640484739,1.34467177,119280.0,119270.0,0.003]
[1753640485651,1.47951177,119280.0,119270.0,0.003]
[1753640487845,0.83487975,119280.0,119270.0,0.003]
[1753640488064,1.47951177,119280.0,119270.0,0.003]
[1753640488277,1.47951177,119280.0,119270.0,0.001]
[1753640488702,1.47951177,119280.0,119270.0,0.002]
[1753640489380,1.47951177,119280.0,119270.0,0.001]
[1753640489806,1.48051177,119280.0,119270.0,0.001]
[1753640490244,1.47951177,119280.0,119270.0,0.001]
[1753640496767,1.56398907,119280.0,119270.0,0.001]
[1753640497016,0.96328641,119260.0,119250.0,0.3402]
[1753640497234,0.8556704,119260.0,119250.0,0.3402]
[1753640497448,1.17798641,119260.0,119250.0,0.3402]
[1753640497807,1.42798641,119260.0,119250.0,0.3402]
[1753640498215,1.42806744,119260.0,119250.0,0.3402]
[1753640498695,1.39546744,119260.0,119250.0,0.3402]
[1753640498881,1.36506744,119260.0,119250.0,0.34225]
[1753640499084,1.04275143,119260.0,119250.0,0.34325]
[1753640499286,1.36506744,119260.0,119250.0,0.34425]
[1753640499492,1.36506744,119260.0,119250.0,0.34325]
[1753640499690,1.04275143,119260.0,119250.0,0.34225]
[1753640499899,1.36506744,119260.0,119250.0,0.34425]
[1753640500070,1.35979744,119260.0,119250.0,0.34725]
[1753640500715,1.35979744,119260.0,119250.0,0.53173608]
[1753640501179,1.03748143,119260.0,119250.0,0.53173608]
[1753640501364,1.35979744,119260.0,119250.0,0.53173608]
[1753640501804,1.09129744,119260.0,119250.0,0.53173608]
[1753640502255,0.3834655,119260.0,119250.0,0.61720608]
[1753640502468,0.54273962,119260.0,119250.0,0.63695679]
[1753640502684,0.32508103,119260.0,119250.0,0.75383409]
[1753640502899,8.103e-05,119260.0,119250.0,0.75383409]
[1753640503121,8.103e-05,119260.0,119250.0,1.1861501]
[1753640503310,8.103e-05,119260.0,119250.0,0.75383409]
[1753640503564,0.07508103,119260.0,119250.0,0.87383409]
[1753640503801,8.103e-05,119260.0,119250.0,0.87383409]
[1753640504006,0.07508103,119260.0,119250.0,0.87383409]
[1753640504425,8.103e-05,119260.0,119250.0,0.87383409]
[1753640505307,8.103e-05,119260.0,119250.0,0.75383409]
[1753640505512,0.08008103,119260.0,119250.0,0.75383409]
[1753640506615,0.08008103,119260.0,119250.0,1.0761501]
[1753640507263,0.08008103,119260.0,119250.0,0.75383409]
[1753640508294,0.08008103,119260.0,119250.0,2.18578012]
[1753640508570,0.08008103,119260.0,119250.0,2.21096012]
[1753640509422,0.08008103,119260.0,119250.0,2.71730112]
[1753640509923,0.08008103,119260.0,119250.0,2.38119112]
[1753640510149,0.08008103,119260.0,119250.0,2.46566842]
[1753640510387,0.08008103,119260.0,119250.0,2.38119112]
[1753640511905,0.08008103,119260.0,119250.0,2.05887511]
[1753640512114,0.08008103,119260.0,119250.0,2.38119112]
[1753640512796,0.64508042,119300.0,119290.0,0.56280659]
[1753640513013,0.64190042,119300.0,119290.0,0.72813207]
[1753640513197,0.71690042,119300.0,119290.0,0.73018207]
[1753640514324,0.64925,119300.0,119290.0,0.73118207]
[1753640514540,0.66601409,119300.0,119290.0,0.54119412]
[1753640514801,1.29069511,119300.0,119290.0,0.00148548]
[1753640515037,1.42445511,119300.0,119290.0,0.00148548]
[1753640515875,1.60680469,119300.0,119290.0,0.00148548]
[1753640516312,1.60680469,119300.0,119290.0,0.00048548]
[1753640516515,1.60980469,119300.0,119290.0,0.00048548]
[1753640516878,1.28748868,119300.0,119290.0,0.00048548]
[1753640517089,1.60980469,119300.0,119290.0,0.00048548]
[1753640517714,1.60980469,119300.0,119290.0,0.16814412]
[1753640518078,1.28010674,119300.0,119290.0,0.16814412]
[1753640518293,1.46866275,119300.0,119290.0,0.16814412]
[1753640518453,1.60254275,119300.0,119290.0,0.18490977]
[1753640518903,1.03860868,119300.0,119290.0,0.19329242]
[1753640519103,1.35254275,119300.0,119290.0,0.16814412]
[1753640519450,1.35254275,119300.0,119290.0,0.17652705]
[1753640519694,1.35254275,119300.0,119290.0,0.16814412]
[1753640520072,1.60254275,119300.0,119290.0,0.17652705]
[1753640520490,1.61092469,119300.0,119290.0,0.18490991]
[1753640520700,1.61092469,119300.0,119290.0,0.19329263]
[1753640520931,0.73708367,119300.0,119290.0,0.19329263]
[1753640521137,1.04809774,119300.0,119290.0,0.21200772]
[1753640521389,0.58352,119300.0,119290.0,0.21200772]
[1753640521597,0.60028332,119300.0,119290.0,0.37884772]
[1753640521804,0.58352,119300.0,119290.0,0.37884772]
[1753640522017,0.57825,119300.0,119290.0,0.37884772]
[1753640522229,0.58663159,119300.0,119290.0,0.41034772]
[1753640522452,0.66163159,119300.0,119290.0,0.41034772]
[1753640522872,0.65225,119300.0,119290.0,0.41034772]
[1753640523085,0.66063166,119300.0,119290.0,0.41034772]
[1753640523299,0.65763166,119300.0,119290.0,0.41034772]
[1753640523509,0.4991,119300.0,119290.0,0.54804502]
[1753640524200,0.23577316,119310.0,119290.0,0.54804502]
[1753640524201,0.21541199,119310.0,119300.0,0.56579041]
[1753640524435,0.20703089,119310.0,119300.0,0.56774041]
[1753640524658,0.21541192,119310.0,119300.0,0.57889908]
[1753640525566,0.22379309,119310.0,119300.0,0.57889908]
[1753640525782,0.19965,119310.0,119300.0,0.57889908]
[1753640525995,0.20803089,119310.0,119300.0,0.61039908]
[1753640526227,0.14376185,119310.0,119300.0,0.67729401]
[1753640526465,0.14376185,119310.0,119300.0,0.61039908]
[1753640526690,0.127,119310.0,119300.0,0.61039908]
[1753640526961,0.127,119310.0,119300.0,0.75107638]
[1753640527458,0.077,119310.0,119300.0,0.75107638]
[1753640528020,0.002,119310.0,119300.0,0.77624838]
[1753640528298,0.001,119310.0,119300.0,0.77624838]
[1753640528871,0.19865,119320.0,119310.0,0.56577426]
[1753640529376,0.19865,119320.0,119310.0,0.81900156]
[1753640529663,0.52096601,119320.0,119310.0,0.78620156]
[1753640530236,0.20376,119320.0,119310.0,0.78720156]
[1753640530919,0.53445634,119320.0,119310.0,0.78720156]
[1753640531131,0.21214033,119320.0,119310.0,0.75225156]
[1753640531353,0.53445627,119320.0,119310.0,0.75225156]
[1753640531562,0.54283667,119320.0,119310.0,0.75325156]
[1753640532202,0.27556777,119320.0,119310.0,0.75325156]
[1753640532409,0.59788378,119320.0,119310.0,0.75325156]
[1753640532635,0.57576425,119320.0,119310.0,0.75325156]
[1753640532846,0.23668737,119320.0,119310.0,0.75325156]
[1753640533080,0.56738378,119320.0,119310.0,0.75325156]
[1753640533923,0.57576432,119320.0,119310.0,0.75325156]
[1753640534553,1.22205684,119320.0,119310.0,0.002]
[1753640534789,1.47205684,119320.0,119310.0,0.002]
[1753640535316,1.47205684,119320.0,119310.0,0.001]
[1753640535970,0.2228902,119300.0,119290.0,0.65910937]
[1753640536170,0.58927952,119300.0,119290.0,0.65910937]
[1753640536395,0.66606952,119300.0,119290.0,0.66749202]
[1753640536633,0.66606952,119300.0,119290.0,0.68425711]
[1753640536886,0.74106952,119300.0,119290.0,0.68425711]
[1753640537260,0.74106952,119300.0,119290.0,0.68425662]
[1753640537601,0.74106952,119300.0,119290.0,0.68625662]
[1753640537807,0.74945167,119300.0,119290.0,0.68898295]
[1753640538015,0.56504285,119300.0,119290.0,0.68898295]
[1753640538227,0.56504285,119300.0,119290.0,0.69736539]
[1753640538228,0.58180708,119300.0,119290.0,0.69736539]
[1753640538439,0.74945167,119300.0,119290.0,0.68898295]
[1753640538645,0.75783389,119300.0,119290.0,0.68898295]
[1753640538852,0.74107036,119300.0,119290.0,0.67221814]
[1753640539064,0.76308828,119300.0,119290.0,0.67221828]
[1753640539491,0.80470613,119300.0,119290.0,0.13668548]
[1753640539704,0.93874613,119300.0,119290.0,0.34248548]
[1753640541789,1.18874613,119300.0,119290.0,0.34248548]
[1753640542215,1.18874613,119300.0,119290.0,0.00248548]
[1753640543057,1.18874613,119300.0,119290.0,0.00148548]
[1753640544313,1.18874613,119300.0,119290.0,0.00048548]
[1753640547795,1.27322343,119300.0,119290.0,0.00048548]
[1753640550362,0.15853606,119270.0,119260.0,0.66604309]
[1753640550577,0.70802513,119270.0,119260.0,0.63565026]
[1753640550781,0.70802513,119270.0,119260.0,0.65494299]
[1753640551199,0.3178553,119260.0,119250.0,0.09303242]
[1753640551422,0.3178553,119260.0,119250.0,0.15432772]
[1753640551423,0.7342567,119260.0,119250.0,0.15432772]
[1753640551639,0.7373967,119260.0,119250.0,0.0866773]
[1753640552503,0.41508069,119260.0,119250.0,0.25451439]
[1753640552710,0.41508069,119260.0,119250.0,0.27967105]
[1753640552917,0.7047967,119260.0,119250.0,0.29098493]
[1753640553134,0.6996567,119260.0,119250.0,0.30037053]
[1753640553347,0.73337518,119260.0,119250.0,0.09911339]
[1753640553552,0.77111518,119260.0,119250.0,0.09911339]
[1753640553958,0.77111518,119260.0,119250.0,0.10749913]
[1753640554185,0.3445,119260.0,119250.0,1.07708066]
[1753640554413,0.3445,119260.0,119250.0,0.75476465]
[1753640556169,0.2695,119260.0,119250.0,1.33832968]
[1753640556371,0.2695,119260.0,119250.0,2.00621368]
[1753640556804,0.3445,119280.0,119250.0,1.9800573]
[1753640557025,0.2945,119280.0,119270.0,0.59683891]
[1753640557235,0.2695,119280.0,119270.0,1.26688124]
[1753640557438,0.2695,119280.0,119270.0,2.00343024]
[1753640558072,0.001,119280.0,119270.0,2.25143624]
[1753640558923,0.001,119280.0,119270.0,1.35123724]
[1753640559149,0.3445,119300.0,119290.0,0.25680659]
[1753640559346,0.3445,119300.0,119290.0,0.57704389]
[1753640559602,0.3445,119300.0,119290.0,0.63622389]
[1753640559812,0.3445,119300.0,119290.0,0.66139789]
[1753640560232,0.3435,119300.0,119290.0,0.66139789]
[1753640560453,0.34598543,119300.0,119290.0,0.66139789]
[1753640560673,0.2685,119320.0,119310.0,0.53277426]
[1753640560902,0.05314,119340.0,119330.0,0.19274196]
[1753640561117,0.1231556,119340.0,119330.0,0.32838196]
[1753640561542,0.1981556,119340.0,119330.0,0.32838196]
[1753640561979,0.20653438,119340.0,119330.0,0.32838196]
[1753640562191,0.20653438,119340.0,119330.0,0.32638196]
[1753640562623,0.20653438,119340.0,119330.0,0.32738196]
[1753640562857,0.2149133,119340.0,119330.0,0.32738196]
[1753640563436,0.20653438,119340.0,119330.0,0.32738196]
[1753640564240,0.1251456,119340.0,119330.0,0.81112342]
[1753640564446,0.0751456,119340.0,119330.0,0.75385926]
[1753640564645,0.0751456,119340.0,119330.0,0.78525926]
[1753640564881,0.0751456,119340.0,119330.0,0.84145926]
[1753640565417,0.0751456,119340.0,119330.0,0.84345926]
[1753640566011,0.0751456,119340.0,119330.0,0.84643926]
[1753640566848,0.0751456,119340.0,119330.0,0.84345926]
[1753640567613,0.0751456,119340.0,119330.0,1.07067274]
[1753640567820,0.0001456,119340.0,119330.0,1.00718828]
[1753640568442,0.0001456,119340.0,119330.0,1.00618828]
[1753640568645,0.0001456,119340.0,119330.0,1.00418828]
[1753640568821,0.0031456,119340.0,119330.0,1.00418828]
[1753640569025,0.0071456,119340.0,119330.0,1.00418828]
[1753640569760,0.0071456,119340.0,119330.0,1.08866558]
[1753640570455,0.0071456,119340.0,119330.0,1.00418828]
[1753640572387,0.0071456,119340.0,119330.0,3.64872838]
[1753640572594,0.0071456,119340.0,119330.0,1.87338138]
[1753640573225,0.0071456,119340.0,119330.0,2.05561338]
[1753640573438,0.0071456,119340.0,119330.0,1.74120328]
[1753640573660,0.0720156,119340.0,119330.0,1.06831728]
[1753640574076,0.0781556,119340.0,119330.0,0.86281926]
[1753640574300,0.0741556,119340.0,119330.0,0.86281926]
[1753640574511,0.0731556,119340.0,119330.0,0.86281926]
[1753640574725,0.0771556,119340.0,119330.0,0.72921926]
[1753640574960,0.0751556,119340.0,119330.0,0.86277926]
[1753640575167,0.0801556,119340.0,119330.0,0.86277926]
[1753640575374,0.0781556,119340.0,119330.0,0.91308926]
[1753640575585,0.0811556,119340.0,119330.0,0.72921926]
[1753640575790,0.0780156,119340.0,119330.0,0.86277926]
[1753640576011,0.0760156,119340.0,119330.0,0.86277926]
[1753640576422,0.0760156,119340.0,119330.0,0.89417926]
[1753640576830,0.0790656,119340.0,119330.0,0.94525656]
[1753640577054,0.0820956,119340.0,119330.0,0.86281926]
[1753640577679,0.0081456,119340.0,119330.0,0.89421926]
[1753640577892,0.0081456,119340.0,119330.0,0.98226926]
[1753640579137,0.0081456,119340.0,119330.0,0.99971828]
[1753640579356,0.0081456,119340.0,119330.0,1.39860568]
[1753640579795,0.0081456,119340.0,119330.0,1.08419558]
[1753640580883,0.0081456,119340.0,119330.0,1.10935958]
[1753640581526,0.2766456,119340.0,119330.0,1.10935958]
[1753640583432,0.2766456,119340.0,119330.0,1.02488228]
[1753640584130,0.2766456,119340.0,119330.0,1.33929238]
[1753640584567,0.2766456,119340.0,119330.0,2.03512238]
[1753640584819,0.2766456,119340.0,119330.0,1.63618328]
[1753640586250,0.2766456,119340.0,119330.0,2.48154328]
[1753640586460,0.2766456,119340.0,119330.0,2.09794758]
[1753640586824,0.2766456,119340.0,119330.0,1.89723158]
[1753640587557,0.2766456,119340.0,119330.0,1.31773728]
[1753640587772,0.2766456,119340.0,119330.0,1.26108728]
[1753640588190,0.2766456,119340.0,119330.0,1.36343228]
[1753640588392,0.3454156,119340.0,119330.0,1.36343228]
[1753640589053,0.2766456,119340.0,119330.0,1.36343228]
[1753640589262,0.2766456,119340.0,119330.0,1.44790958]
[1753640589496,0.2766456,119340.0,119330.0,2.00081358]
[1753640589707,0.2766456,119340.0,119330.0,1.94313158]
[1753640589922,0.2766456,119340.0,119330.0,1.40704928]
[1753640590124,0.3454156,119340.0,119330.0,1.31076628]
[1753640590380,0.3454156,119340.0,119330.0,1.11730528]
[1753640590590,0.3454156,119340.0,119330.0,1.10120528]
[1753640591423,0.3454156,119340.0,119330.0,1.25115692]
[1753640591602,0.3404156,119340.0,119330.0,1.25115692]
[1753640591813,0.3434156,119340.0,119330.0,1.25115692]
[1753640592925,0.2746456,119340.0,119330.0,1.36823422]
[1753640593358,0.2716456,119340.0,119330.0,1.36823422]
[1753640593565,0.3404156,119340.0,119330.0,1.33563422]
[1753640593993,0.3404156,119340.0,119330.0,1.23875092]
[1753640594623,0.3404156,119340.0,119330.0,1.08879928]
[1753640594836,0.3475956,119340.0,119330.0,0.90339228]
[1753640595073,0.3805956,119340.0,119330.0,1.05336422]
[1753640597571,0.3805956,119340.0,119330.0,0.90331228]
[1753640598222,0.3475956,119340.0,119330.0,0.90331228]
[1753640602041,0.3475956,119340.0,119330.0,0.90535228]
[1753640602669,0.46234516,119340.0,119330.0,0.63400363]
[1753640602860,0.47187452,119340.0,119330.0,0.77586326]
[1753640603101,0.79378993,119340.0,119330.0,0.77586326]
[1753640603316,0.80216892,119340.0,119330.0,0.77586326]
[1753640603735,0.98651594,119340.0,119330.0,0.7758234]
[1753640604167,0.77625803,119340.0,119330.0,0.4496413]
[1753640604372,0.77625803,119340.0,119330.0,0.47344]
[1753640604581,0.77625803,119340.0,119330.0,0.48182012]
[1753640604832,0.77625803,119340.0,119330.0,0.65780254]
[1753640605053,0.77325803,119340.0,119330.0,0.65780254]
[1753640605319,0.77125803,119340.0,119330.0,0.66618245]
[1753640605546,0.77225803,119340.0,119330.0,0.66618245]
[1753640605983,0.77225803,119340.0,119330.0,0.67456229]
[1753640606390,0.77225803,119340.0,119330.0,0.66618245]
[1753640606825,0.77225803,119340.0,119330.0,0.65780254]
[1753640607039,0.77325803,119340.0,119330.0,0.66618231]
[1753640607245,0.77225803,119340.0,119330.0,0.66618231]
[1753640607424,0.77325803,119340.0,119330.0,0.66618231]
[1753640608472,0.77325803,119340.0,119330.0,0.52436261]
[1753640608679,0.77325803,119340.0,119330.0,0.65780261]
[1753640609333,0.76487883,119340.0,119330.0,0.34]
[1753640609483,0.76487883,119340.0,119330.0,0.47344]